[Event "Kvibergspelen 2018"]
[Site "Prioritet Serneke Arena, Krutvagen 2, Gothenburg, Sweden"]
[Date "2018.04.22"]
[Round "7.15"]
[White "Strom-Engdahl, Alexander"]
[Black "Kardell, Mathias"]
[Result "0-1"]
[TimeControl "15 minutes + 5 seconds per move from move one (Round 1 - 4) / 90 minutes + 30 seconds per move from move one (Round 5 - 8)"]
[WhiteFideId "1741586"]
[BlackFideId "1710109"]
[WhiteElo "1720"]
[BlackElo "2057"]

1. Nf3 {[%clk 01:30:55]} {[%emt 00:00:02]} d5 {[%clk 01:30:51]} {[%emt
00:00:09]} 2. g3 {[%clk 01:31:13]} {[%emt 00:00:12]} Nf6 {[%clk 01:30:57]}
{[%emt 00:00:24]} 3. Bg2 {[%clk 01:30:37]} {[%emt 00:01:06]} Bf5 {[%clk
01:30:47]} {[%emt 00:00:41]} 4. O-O {[%clk 01:30:16]} {[%emt 00:00:50]} e6
{[%clk 01:30:12]} {[%emt 00:01:06]} 5. c4 {[%clk 01:29:31]} {[%emt 00:01:15]}
c6 {[%clk 01:29:47]} {[%emt 00:00:55]} 6. cxd5 {[%clk 01:28:55]} {[%emt
00:01:06]} exd5 {[%clk 01:27:51]} {[%emt 00:02:26]} 7. d3 {[%clk 01:28:17]}
{[%emt 00:01:07]} Bc5 {[%clk 01:21:24]} {[%emt 00:06:57]} 8. Bg5 {[%clk
01:27:07]} {[%emt 00:01:40]} Nbd7 {[%clk 01:20:03]} {[%emt 00:01:51]} 9. Nc3
{[%clk 01:24:06]} {[%emt 00:03:31]} h6 {[%clk 01:18:24]} {[%emt 00:02:09]} 10.
Bf4 {[%clk 01:23:14]} {[%emt 00:01:19]} O-O {[%clk 01:15:46]} {[%emt 00:03:10]}
11. Rc1 {[%clk 01:19:45]} {[%emt 00:03:59]} Re8 {[%clk 01:13:09]} {[%emt
00:03:07]} 12. Re1 {[%clk 01:17:36]} {[%emt 00:02:40]} Ng4 {[%clk 01:02:42]}
{[%emt 00:10:56]} 13. d4 {[%clk 01:17:45]} {[%emt 00:00:21]} Bb6 {[%clk
01:00:24]} {[%emt 00:02:48]} 14. Qd2 {[%clk 01:05:23]} {[%emt 00:12:52]} Nf8
{[%clk 00:56:46]} {[%emt 00:04:08]} 15. Na4 {[%clk 01:02:03]} {[%emt 00:03:50]}
Ne6 {[%clk 00:50:41]} {[%emt 00:06:35]} 16. h4 {[%clk 00:58:32]} {[%emt
00:04:01]} Nf6 {[%clk 00:44:57]} {[%emt 00:06:14]} 17. Be3 {[%clk 00:33:51]}
{[%emt 00:25:12]} Ne4 {[%clk 00:42:49]} {[%emt 00:02:38]} 18. Qd1 {[%clk
00:32:25]} {[%emt 00:01:56]} Bc7 {[%clk 00:37:35]} {[%emt 00:05:45]} 19. Nc5
{[%clk 00:31:08]} {[%emt 00:01:47]} N6xc5 {[%clk 00:35:13]} {[%emt 00:02:51]}
20. dxc5 {[%clk 00:28:36]} {[%emt 00:03:02]} Nxg3 {[%clk 00:29:58]} {[%emt
00:05:44]} 21. fxg3 {[%clk 00:27:50]} {[%emt 00:01:16]} Rxe3 {[%clk 00:29:42]}
{[%emt 00:00:46]} 22. Qd4 {[%clk 00:26:52]} {[%emt 00:01:28]} Qe7 {[%clk
00:28:50]} {[%emt 00:01:21]} 23. Kf2 {[%clk 00:19:58]} {[%emt 00:07:24]} Re8
{[%clk 00:25:21]} {[%emt 00:03:58]} 24. Qd2 {[%clk 00:18:33]} {[%emt 00:01:56]}
Qf6 {[%clk 00:16:09]} {[%emt 00:09:43]} 25. Rc3 {[%clk 00:14:36]} {[%emt
00:04:27]} R3e4 {[%clk 00:14:09]} {[%emt 00:02:29]} 26. Nh2 {[%clk 00:11:18]}
{[%emt 00:03:49]} Rd4 {[%clk 00:12:53]} {[%emt 00:01:46]} 27. Qc1 {[%clk
00:10:20]} {[%emt 00:01:29]} Ba5 {[%clk 00:11:20]} {[%emt 00:02:03]} 28. Rf3
{[%clk 00:10:13]} {[%emt 00:00:37]} Bxe1+ {[%clk 00:10:43]} {[%emt 00:01:08]}
29. Qxe1 {[%clk 00:10:40]} {[%emt 00:00:02]} Qe5 {[%clk 00:10:08]} {[%emt
00:01:05]} 30. b3 {[%clk 00:08:30]} {[%emt 00:02:40]} Bg4 {[%clk 00:09:04]}
{[%emt 00:01:32]} 31. Nxg4 {[%clk 00:08:45]} {[%emt 00:00:16]} Rxg4 {[%clk
00:09:30]} {[%emt 00:00:05]} 32. Bh3 {[%clk 00:08:59]} {[%emt 00:00:15]} Re4
{[%clk 00:09:40]} {[%emt 00:00:20]} 33. Bf1 {[%clk 00:08:45]} {[%emt 00:00:44]}
Qd4+ {[%clk 00:09:34]} {[%emt 00:00:36]} 34. e3 {[%clk 00:08:38]} {[%emt
00:00:38]} Qxc5 {[%clk 00:09:53]} {[%emt 00:00:11]} 35. Bd3 {[%clk 00:09:01]}
{[%emt 00:00:07]} R4e7 {[%clk 00:09:45]} {[%emt 00:00:37]} 36. Qd2 {[%clk
00:08:57]} {[%emt 00:00:34]} Qd6 {[%clk 00:09:05]} {[%emt 00:01:10]} 37. Ke2
{[%clk 00:07:25]} {[%emt 00:02:02]} d4 {[%clk 00:08:43]} {[%emt 00:00:53]} 38.
e4 {[%clk 00:07:39]} {[%emt 00:00:16]} c5 {[%clk 00:08:40]} {[%emt 00:00:33]}
39. Kf2 {[%clk 00:07:35]} {[%emt 00:00:34]} Re6 {[%clk 00:08:17]} {[%emt
00:00:53]} 40. Bc4 {[%clk 00:07:45]} {[%emt 00:00:20]} Rf6 {[%clk 00:08:27]}
{[%emt 00:00:19]} 41. Qd3 {[%clk 00:07:14]} {[%emt 00:01:02]} a6 {[%clk
00:07:55]} {[%emt 00:01:03]} 42. a4 {[%clk 00:07:31]} {[%emt 00:00:12]} Qe5
{[%clk 00:06:08]} {[%emt 00:02:17]} 43. Bd5 {[%clk 00:07:44]} {[%emt 00:00:17]}
Rb8 {[%clk 00:06:02]} {[%emt 00:00:36]} 44. Qc4 {[%clk 00:07:54]} {[%emt
00:00:20]} Rxf3+ {[%clk 00:05:55]} {[%emt 00:00:38]} 45. Kxf3 {[%clk 00:08:13]}
{[%emt 00:00:11]} Qc7 {[%clk 00:05:40]} {[%emt 00:00:44]} 46. b4 {[%clk
00:08:22]} {[%emt 00:00:22]} b6 {[%clk 00:02:19]} {[%emt 00:03:50]} 47. Qxa6
{[%clk 00:08:01]} {[%emt 00:00:52]} cxb4 {[%clk 00:02:39]} {[%emt 00:00:11]} 48.
Qb5 {[%clk 00:06:50]} {[%emt 00:01:40]} Qc3+ {[%clk 00:02:34]} {[%emt
00:00:34]} 49. Kf2 {[%clk 00:06:57]} {[%emt 00:00:23]} Qc5 {[%clk 00:02:17]}
{[%emt 00:00:47]} 50. Qd3 {[%clk 00:07:10]} {[%emt 00:00:17]} Rc8 {[%clk
00:02:15]} {[%emt 00:00:32]} 51. Qf3 {[%clk 00:07:25]} {[%emt 00:00:16]} Qc2+
{[%clk 00:02:08]} {[%emt 00:00:36]} 52. Kg1 {[%clk 00:07:29]} {[%emt 00:00:26]}
Rc7 {[%clk 00:02:06]} {[%emt 00:00:33]} 53. e5 {[%clk 00:07:12]} {[%emt
00:00:46]} Qc1+ {[%clk 00:01:57]} {[%emt 00:00:39]} 54. Kh2 {[%clk 00:07:30]}
{[%emt 00:00:13]} Qe3 {[%clk 00:02:14]} {[%emt 00:00:13]} 55. Qf5 {[%clk
00:07:34]} {[%emt 00:00:26]} Qd2 {[%clk 00:01:19]} {[%emt 00:01:25]} 56. Kh3
{[%clk 00:07:52]} {[%emt 00:00:11]} Qc2 {[%clk 00:00:37]} {[%emt 00:01:13]} 57.
Be4 {[%clk 00:07:42]} {[%emt 00:00:41]} g6 {[%clk 00:00:33]} {[%emt 00:00:33]}
58. Qf4 {[%clk 00:07:47]} {[%emt 00:00:25]} Qc1 {[%clk 00:00:39]} {[%emt
00:00:24]} 59. Qf6 {[%clk 00:07:59]} {[%emt 00:00:16]} Qc4 {[%clk 00:00:31]}
{[%emt 00:00:39]} 60. Kh2 {[%clk 00:07:26]} {[%emt 00:01:03]} Qe2 {[%clk
00:00:42]} {[%emt 00:00:19]} 61. Bg2 {[%clk 00:07:37]} {[%emt 00:00:20]} Rc2
{[%clk 00:00:47]} {[%emt 00:00:25]} 62. Kh3 {[%clk 00:07:08]} {[%emt 00:00:59]}
Qxg2 {[%clk 00:01:07]} {[%emt 00:00:09]} 63. Kg4 {[%clk 00:07:32]} {[%emt
00:00:07]} h5+ {[%clk 00:01:26]} {[%emt 00:00:11]} 64. Kg5 {[%clk 00:07:48]}
{[%emt 00:00:15]} Qxg3+ {[%clk 00:01:44]} {[%emt 00:00:11]} 65. Kh6 {[%clk
00:08:07]} {[%emt 00:00:11]} Qe3 {[%clk 00:02:05]} {[%emt 00:00:08]} 0-1

[Event "Kvibergspelen 2018"]
[Site "Prioritet Serneke Arena, Krutvagen 2, Gothenburg, Sweden"]
[Date "2018.04.22"]
[Round "7.16"]
[White "Bellon Lopez, Juan"]
[Black "Wahlund, Max"]
[Result "1/2-1/2"]
[TimeControl "15 minutes + 5 seconds per move from move one (Round 1 - 4) / 90 minutes + 30 seconds per move from move one (Round 5 - 8)"]
[WhiteTitle "GM"]
[BlackTitle "CM"]
[WhiteFideId "2200031"]
[BlackFideId "1741861"]
[WhiteElo "2352"]
[BlackElo "2073"]

1. d4 {[%clk 01:30:58]} {[%emt 00:13:04]} Nf6 {[%clk 01:30:43]} {[%emt
00:00:17]} 2. Bg5 {[%clk 01:31:22]} {[%emt 00:00:05]} c5 {[%clk 01:31:09]}
{[%emt 00:00:04]} 3. d5 {[%clk 01:31:42]} {[%emt 00:00:11]} g6 {[%clk
01:30:46]} {[%emt 00:00:52]} 4. Bxf6 {[%clk 01:31:56]} {[%emt 00:00:16]} exf6
{[%clk 01:30:17]} {[%emt 00:00:59]} 5. e3 {[%clk 01:32:07]} {[%emt 00:00:18]}
d6 {[%clk 01:30:30]} {[%emt 00:00:18]} 6. c3 {[%clk 01:30:38]} {[%emt
00:01:58]} h5 {[%clk 01:26:29]} {[%emt 00:04:31]} 7. Nd2 {[%clk 01:26:23]}
{[%emt 00:04:45]} Bh6 {[%clk 01:26:10]} {[%emt 00:00:49]} 8. Qa4+ {[%clk
01:26:16]} {[%emt 00:00:38]} Nd7 {[%clk 01:23:53]} {[%emt 00:02:47]} 9. Qe4+
{[%clk 01:24:37]} {[%emt 00:02:09]} Kf8 {[%clk 01:20:04]} {[%emt 00:04:19]} 10.
g4 {[%clk 01:24:33]} {[%emt 00:00:34]} hxg4 {[%clk 01:18:25]} {[%emt 00:02:10]}
11. Qxg4 {[%clk 01:24:44]} {[%emt 00:00:19]} f5 {[%clk 01:15:51]} {[%emt
00:03:03]} 12. Qg2 {[%clk 01:23:24]} {[%emt 00:01:48]} f4 {[%clk 01:15:01]}
{[%emt 00:01:22]} 13. e4 {[%clk 01:21:29]} {[%emt 00:02:24]} Qe7 {[%clk
01:11:20]} {[%emt 00:04:13]} 14. f3 {[%clk 01:18:29]} {[%emt 00:03:30]} Ne5
{[%clk 01:09:47]} {[%emt 00:02:04]} 15. Nc4 {[%clk 01:17:29]} {[%emt 00:01:29]}
Bd7 {[%clk 01:01:05]} {[%emt 00:09:12]} 16. a4 {[%clk 01:15:46]} {[%emt
00:02:14]} Bg5 {[%clk 00:57:18]} {[%emt 00:04:17]} 17. Kd1 {[%clk 01:12:23]}
{[%emt 00:03:53]} Rh5 {[%clk 00:54:34]} {[%emt 00:03:13]} 18. Nxe5 {[%clk
01:09:45]} {[%emt 00:03:09]} Qxe5 {[%clk 00:54:48]} {[%emt 00:00:16]} 19. Bb5
{[%clk 01:10:07]} {[%emt 00:00:08]} Bc8 {[%clk 00:52:28]} {[%emt 00:02:50]} 20.
a5 {[%clk 01:06:06]} {[%emt 00:04:31]} a6 {[%clk 00:52:27]} {[%emt 00:00:33]}
21. Ba4 {[%clk 01:06:11]} {[%emt 00:00:24]} Bd8 {[%clk 00:52:29]} {[%emt
00:00:27]} 22. Bc2 {[%clk 01:04:15]} {[%emt 00:02:26]} Bd7 {[%clk 00:51:55]}
{[%emt 00:01:05]} 23. Qd2 {[%clk 00:57:33]} {[%emt 00:07:11]} Kg7 {[%emt
00:02:07]} 24. Ba4 {[%clk 00:55:53]} {[%emt 00:02:05]} Bc8 {[%clk 00:46:39]}
{[%emt 00:04:15]} 25. Bc2 {[%clk 00:54:20]} {[%emt 00:02:02]} Bd7 {[%clk
00:46:37]} {[%emt 00:00:33]} 26. Ba4 {[%clk 00:54:39]} {[%emt 00:00:12]}
1/2-1/2

[Event "Kvibergspelen 2018"]
[Site "Prioritet Serneke Arena, Krutvagen 2, Gothenburg, Sweden"]
[Date "2018.04.22"]
[Round "7.17"]
[White "Jonsson, Krister"]
[Black "Ask, Josef"]
[Result "0-1"]
[TimeControl "15 minutes + 5 seconds per move from move one (Round 1 - 4) / 90 minutes + 30 seconds per move from move one (Round 5 - 8)"]
[BlackTitle "FM"]
[WhiteFideId "1708023"]
[BlackFideId "1704583"]
[WhiteElo "2047"]
[BlackElo "2173"]

1. d4 {[%clk 01:30:57]} {[%emt 00:00:02]} Nf6 {[%clk 01:30:51]} {[%emt
00:00:09]} 2. c4 {[%clk 01:31:21]} {[%emt 00:00:06]} g6 {[%clk 01:30:55]}
{[%emt 00:00:25]} 3. Nc3 {[%clk 01:31:42]} {[%emt 00:00:10]} Bg7 {[%clk
01:31:08]} {[%emt 00:00:17]} 4. e4 {[%clk 01:31:25]} {[%emt 00:00:47]} d6
{[%clk 01:31:28]} {[%emt 00:00:10]} 5. f3 {[%clk 01:31:49]} {[%emt 00:00:06]}
O-O {[%clk 01:31:38]} {[%emt 00:00:20]} 6. Be3 {[%clk 01:32:12]} {[%emt
00:00:07]} e5 {[%clk 01:31:02]} {[%emt 00:01:07]} 7. Nge2 {[%clk 01:32:25]}
{[%emt 00:00:16]} c6 {[%clk 01:30:57]} {[%emt 00:00:36]} 8. Qd2 {[%clk
01:32:06]} {[%emt 00:00:49]} Nbd7 {[%clk 01:30:52]} {[%emt 00:00:35]} 9. O-O-O
{[%clk 01:26:07]} {[%emt 00:06:28]} a6 {[%clk 01:27:07]} {[%emt 00:04:16]} 10.
Kb1 {[%clk 01:26:06]} {[%emt 00:00:31]} b5 {[%clk 01:24:16]} {[%emt 00:03:21]}
11. Nc1 {[%clk 01:25:59]} {[%emt 00:00:37]} exd4 {[%clk 01:20:03]} {[%emt
00:04:44]} 12. Bxd4 {[%clk 01:26:17]} {[%emt 00:00:11]} Re8 {[%clk 01:15:45]}
{[%emt 00:04:48]} 13. h4 {[%clk 01:17:53]} {[%emt 00:08:54]} h5 {[%clk
01:11:28]} {[%emt 00:04:48]} 14. Be3 {[%clk 01:06:23]} {[%emt 00:12:00]} d5
{[%clk 00:59:55]} {[%emt 00:12:03]} 15. cxd5 {[%clk 00:54:42]} {[%emt
00:12:10]} b4 {[%clk 00:58:43]} {[%emt 00:01:43]} 16. Na4 {[%clk 00:54:17]}
{[%emt 00:00:55]} cxd5 {[%clk 00:58:39]} {[%emt 00:00:34]} 17. Nb3 {[%clk
00:43:30]} {[%emt 00:11:16]} dxe4 {[%clk 00:52:32]} {[%emt 00:06:37]} 18. Bg5
{[%clk 00:39:44]} {[%emt 00:04:15]} Qe7 {[%clk 00:50:30]} {[%emt 00:02:33]} 19.
Re1 {[%clk 00:33:36]} {[%emt 00:06:38]} Bb7 {[%clk 00:46:18]} {[%emt 00:04:41]}
20. Na5 {[%clk 00:30:28]} {[%emt 00:03:40]} Bc8 {[%clk 00:44:09]} {[%emt
00:02:39]} 21. Nb3 {[%clk 00:18:33]} {[%emt 00:12:24]} Qf8 {[%clk 00:40:44]}
{[%emt 00:03:55]} 22. Bc4 {[%clk 00:15:38]} {[%emt 00:03:24]} Ne5 {[%clk
00:38:10]} {[%emt 00:03:04]} 23. Be2 {[%clk 00:13:00]} {[%emt 00:03:08]} Bf5
{[%clk 00:36:02]} {[%emt 00:02:38]} 24. Ka1 {[%clk 00:13:18]} {[%emt 00:00:12]}
Rad8 {[%clk 00:35:26]} {[%emt 00:01:06]} 25. Qe3 {[%clk 00:11:16]} {[%emt
00:02:32]} exf3 {[%clk 00:33:01]} {[%emt 00:02:56]} 26. Bxf3 {[%clk 00:09:53]}
{[%emt 00:01:52]} Nd3 {[%clk 00:32:35]} {[%emt 00:00:56]} 0-1

[Event "Kvibergspelen 2018"]
[Site "Prioritet Serneke Arena, Krutvagen 2, Gothenburg, Sweden"]
[Date "2018.04.22"]
[Round "7.18"]
[White "Larsson, Patrik"]
[Black "Cramling, Anna"]
[Result "1-0"]
[TimeControl "15 minutes + 5 seconds per move from move one (Round 1 - 4) / 90 minutes + 30 seconds per move from move one (Round 5 - 8)"]
[BlackTitle "WFM"]
[WhiteFideId "1713744"]
[BlackFideId "32009232"]
[WhiteElo "2006"]
[BlackElo "2168"]

1. c4 {[%clk 01:30:50]} {[%emt 00:00:07]} c5 {[%clk 01:30:55]} {[%emt
00:00:05]} 2. e3 {[%clk 01:31:08]} {[%emt 00:00:13]} g6 {[%clk 01:19:46]}
{[%emt 00:11:39]} 3. Nf3 {[%clk 01:31:05]} {[%emt 00:00:32]} Bg7 {[%clk
01:20:09]} {[%emt 00:00:08]} 4. d4 {[%clk 01:30:52]} {[%emt 00:00:41]} cxd4
{[%clk 01:19:09]} {[%emt 00:01:31]} 5. exd4 {[%clk 01:29:46]} {[%emt 00:01:37]}
Nf6 {[%clk 01:10:08]} {[%emt 00:09:31]} 6. Nc3 {[%clk 01:27:52]} {[%emt
00:02:23]} O-O {[%clk 01:09:26]} {[%emt 00:01:12]} 7. Be2 {[%clk 01:27:54]}
{[%emt 00:00:28]} d5 {[%clk 01:07:43]} {[%emt 00:02:14]} 8. O-O {[%clk
01:20:00]} {[%emt 00:08:23]} a6 {[%clk 00:59:17]} {[%emt 00:08:57]} 9. cxd5
{[%clk 01:04:20]} {[%emt 00:16:09]} Nxd5 {[%clk 00:59:38]} {[%emt 00:00:09]} 10.
Qb3 {[%clk 01:03:32]} {[%emt 00:01:17]} Be6 {[%clk 00:46:50]} {[%emt 00:13:19]}
11. Bc4 {[%clk 00:47:36]} {[%emt 00:16:26]} Nxc3 {[%clk 00:45:24]} {[%emt
00:01:57]} 12. bxc3 {[%clk 00:47:50]} {[%emt 00:00:15]} Bxc4 {[%clk 00:44:24]}
{[%emt 00:01:31]} 13. Qxc4 {[%clk 00:48:14]} {[%emt 00:00:06]} b5 {[%clk
00:44:32]} {[%emt 00:00:21]} 14. Qe2 {[%clk 00:47:05]} {[%emt 00:01:37]} Nc6
{[%clk 00:39:23]} {[%emt 00:05:42]} 15. Bf4 {[%clk 00:42:43]} {[%emt 00:04:51]}
b4 {[%clk 00:27:31]} {[%emt 00:12:22]} 16. cxb4 {[%clk 00:37:43]} {[%emt
00:05:30]} Nxb4 {[%clk 00:22:26]} {[%emt 00:05:35]} 17. Qd2 {[%clk 00:34:22]}
{[%emt 00:03:50]} Nd5 {[%clk 00:16:58]} {[%emt 00:05:58]} 18. Be5 {[%clk
00:33:59]} {[%emt 00:00:53]} Rc8 {[%clk 00:15:47]} {[%emt 00:01:40]} 19. Bxg7
{[%clk 00:34:00]} {[%emt 00:00:30]} Kxg7 {[%clk 00:16:14]} {[%emt 00:00:04]} 20.
Rac1 {[%clk 00:31:48]} {[%emt 00:02:41]} Qd6 {[%clk 00:16:26]} {[%emt
00:00:18]} 21. Rxc8 {[%clk 00:21:08]} {[%emt 00:11:11]} Rxc8 {[%clk 00:16:55]}
{[%emt 00:00:01]} 22. Rc1 {[%clk 00:21:18]} {[%emt 00:00:19]} Rxc1+ {[%clk
00:12:41]} {[%emt 00:04:45]} 23. Qxc1 {[%clk 00:21:40]} {[%emt 00:00:06]} Qb4
{[%clk 00:13:01]} {[%emt 00:00:10]} 24. h4 {[%clk 00:19:46]} {[%emt 00:02:25]}
Nc3 {[%clk 00:09:38]} {[%emt 00:03:53]} 25. Qe3 {[%clk 00:18:42]} {[%emt
00:01:32]} Nxa2 {[%clk 00:07:39]} {[%emt 00:02:31]} 26. h5 {[%clk 00:16:59]}
{[%emt 00:02:13]} Qd6 {[%clk 00:00:31]} {[%emt 00:07:38]} 27. h6+ {[%emt
00:01:01]} Kg8 28. Qb3 {[%clk 00:13:33]} {[%emt 00:03:24]} Nb4 {[%clk
00:01:14]} {[%emt 00:00:17]} 29. Qc4 {[%clk 00:10:16]} {[%emt 00:03:46]} e6
{[%clk 00:01:04]} {[%emt 00:00:40]} 30. Ng5 {[%clk 00:08:36]} {[%emt 00:02:09]}
Nd5 {[%clk 00:00:42]} {[%emt 00:00:53]} 31. Qc8+ {[%clk 00:06:55]} {[%emt
00:02:10]} Qf8 {[%clk 00:01:11]} {[%emt 00:00:02]} 32. Qxa6 {[%clk 00:05:19]}
{[%emt 00:02:06]} Nc7 {[%clk 00:00:44]} {[%emt 00:00:57]} 33. Qc6 {[%clk
00:05:06]} {[%emt 00:00:43]} Qxh6 {[%clk 00:00:38]} {[%emt 00:00:37]} 34. f4
{[%clk 00:04:44]} {[%emt 00:00:50]} f6 {[%clk 00:00:36]} {[%emt 00:00:32]} 35.
Nxe6 {[%clk 00:05:01]} {[%emt 00:00:13]} Nxe6 {[%clk 00:00:45]} {[%emt
00:00:22]} 36. Qxe6+ {[%clk 00:05:24]} {[%emt 00:00:07]} Kg7 {[%clk 00:00:43]}
{[%emt 00:00:32]} 37. Qe7+ {[%clk 00:05:34]} {[%emt 00:00:20]} Kg8 {[%clk
00:01:08]} {[%emt 00:00:05]} 38. Qxf6 {[%clk 00:05:31]} {[%emt 00:00:33]} Qh5
{[%clk 00:01:14]} {[%emt 00:00:24]} 39. Qe6+ {[%clk 00:05:32]} {[%emt
00:00:28]} Kf8 {[%clk 00:01:27]} {[%emt 00:00:18]} 40. Qe5 {[%clk 00:05:10]}
{[%emt 00:00:52]} Qd1+ {[%clk 00:01:27]} {[%emt 00:00:29]} 41. Kh2 {[%clk
00:05:34]} {[%emt 00:00:06]} Qg4 {[%clk 00:00:42]} {[%emt 00:01:15]} 42. d5
{[%clk 00:05:39]} {[%emt 00:00:25]} h5 {[%clk 00:00:33]} {[%emt 00:00:40]} 43.
d6 {[%clk 00:05:23]} {[%emt 00:00:45]} Qh4 {[%clk 00:00:37]} {[%emt 00:00:27]}
44. Kg1 {[%clk 00:05:45]} {[%emt 00:00:07]} Kf7 {[%clk 00:00:55]} {[%emt
00:00:13]} 45. f5 {[%clk 00:03:55]} {[%emt 00:02:20]} gxf5 {[%clk 00:00:48]}
{[%emt 00:00:37]} 46. Qxf5+ {[%clk 00:04:18]} {[%emt 00:00:06]} Kg7 {[%clk
00:00:40]} {[%emt 00:00:37]} 47. Qe6 {[%clk 00:03:47]} {[%emt 00:01:02]} Qf6
{[%clk 00:00:38]} {[%emt 00:00:33]} 48. Qxf6+ {[%clk 00:03:31]} {[%emt
00:00:46]} Kxf6 {[%clk 00:01:07]} {[%emt 00:00:01]} 49. Kh2 {[%clk 00:03:52]}
{[%emt 00:00:08]} Ke6 {[%clk 00:01:34]} {[%emt 00:00:04]} 50. Kh3 {[%clk
00:04:19]} {[%emt 00:00:02]} Kxd6 {[%clk 00:02:01]} {[%emt 00:00:04]} 51. Kh4
{[%clk 00:04:34]} {[%emt 00:00:14]} Ke6 {[%clk 00:02:23]} {[%emt 00:00:08]} 52.
Kxh5 {[%clk 00:04:53]} {[%emt 00:00:12]} Kf5 {[%clk 00:02:19]} {[%emt
00:00:33]} 53. g4+ {[%clk 00:05:10]} {[%emt 00:00:13]} Kf6 {[%clk 00:02:47]}
{[%emt 00:00:03]} 54. Kh6 {[%clk 00:05:23]} {[%emt 00:00:17]} Kf7 {[%clk
00:03:14]} {[%emt 00:00:04]} 55. g5 {[%clk 00:05:27]} {[%emt 00:00:26]} Kg8
{[%clk 00:03:38]} {[%emt 00:00:06]} 56. Kg6 {[%clk 00:05:49]} {[%emt 00:00:08]}
1-0